[Event "27th CRO-chT 1A-Men 2018"]
[Site "Biograd"]
[Date "2018.09.09"]
[Round "2.9"]
[White "Sertic, Rudolf"]
[Black "Lalic, Bogdan"]
[Result "1/2-1/2"]
[ECO "B33"]
[WhiteElo "2366"]
[BlackElo "2403"]
[Annotator "NA"]
[PlyCount "25"]
[EventDate "2018.09.08"]
[EventType "team-tourn"]
[EventCountry "CRO"]
[SourceTitle "playchess.com"]
[Source "ChessBase"]
[SourceQuality "1"]
[TimeControl "40/5400+30:1800+30"]

1. e4 {[%emt 0:00:30]} c5 {[%emt 0:03:30]} 2. Nf3 {[%emt 0:00:00]} Nc6 {[%emt 0:00:30]} 3. d4 {[%emt 0:00:00]} cxd4 {[%emt 0:00:00]} 4. Nxd4 {[%emt 0:00:30]} Nf6 {[%emt 0:00:00]} 5. Nc3 {[%emt 0:00:00]} e6 {[%emt 0:00:30]} 6. Ndb5 {[%emt 0:00:00]} d6 {[%emt 0:00:00]} 7. Bf4 {[%emt 0:00:00]} e5 {[%emt 0:00:00]} 8. Bg5 {[%emt 0:00:00]} a6 {[%emt 0:00:30]} 9. Na3 {[%emt 0:00:30]} b5 {[%emt 0:00:30]} 10. Nd5 {[%emt 0:00:00]} Qa5+ {[%emt 0:00:00]} 11. Bd2 {[%emt 0:00:00]} Qd8 {[%emt 0:00:00]} 12. Bg5 {[%emt 0:00:30]} Qa5+ {[%emt 0:00:30]} 13. Bd2 {[%emt 0:00:00]} 1/2-1/2

[Event "27th CRO-chT 1A-Men 2018"]
[Site "Biograd"]
[Date "2018.09.09"]
[Round "2.11"]
[White "Medak, Bojan"]
[Black "Loncar, Robert"]
[Result "1/2-1/2"]
[ECO "A13"]
[WhiteElo "2367"]
[BlackElo "2409"]
[Annotator "ChessBase"]
[PlyCount "55"]
[EventDate "2018.09.08"]
[EventType "team-tourn"]
[EventCountry "CRO"]
[SourceTitle "playchess.com"]
[Source "ChessBase"]
[SourceQuality "1"]
[TimeControl "40/5400+30:1800+30"]

1. c4 {[%emt 0:02:30]} Nf6 {[%emt 0:10:30]} 2. Nf3 {[%emt 0:00:30]} e6 {[%emt 0:00:30]} 3. g3 {[%emt 0:01:30]} d5 {[%emt 0:00:30]} 4. Bg2 {[%emt 0:00:30]} d4 {[%emt 0:00:30]} 5. e3 {[%emt 0:01:30]} c5 {[%emt 0:00:30]} 6. O-O {[%emt 0:02:30]} Nc6 {[%emt 0:00:30]} 7. exd4 {[%emt 0:00:00]} cxd4 {[%emt 0:00:00]} 8. d3 {[%emt 0:01:00]} h6 {[%emt 0:02:00]} 9. Na3 {[%emt 0:01:30]} Bc5 {[%emt 0:01:30]} 10. Re1 {[%emt 0:01:30]} O-O {[%emt 0:01:30]} 11. Ne5 {[%emt 0:03:30]} Nxe5 {[%emt 0:00:30]} 12. Rxe5 {[%emt 0:00:00]} Bd6 {[%emt 0:00:00]} 13. Re1 {[%emt 0:00:00]} e5 {[%emt 0:01:00]} 14. c5 {[%emt 0:02:30]} Bxc5 {[%emt 0:19:30]} 15. Rxe5 {[%emt 0:01:30]} Bd6 {[%emt 0:00:30]} 16. Re1 {[%emt 0:00:30]} Bb4 {[%emt 0:00:30]} 17. Bd2 {[%emt 0:02:30]} Bg4 {[%emt 0:00:30]} 18. Qc2 {[%emt 0:02:30]} Rc8 {[%emt 0:07:30]} 19. Nc4 {[%emt 0:01:30]} Bxd2 {[%emt 0:01:30]} 20. Qxd2 {[%emt 0:00:00]} Rc7 {[%emt 0:12:30]} 21. Rac1 {[%emt 0:06:00]} Be6 {[%emt 0:06:30]} 22. Na5 {[%emt 0:05:30]} Bd5 {[%emt 0:02:30]} 23. Bxd5 {[%emt 0:03:30]} Nxd5 {[%emt 0:00:00]} 24. Rxc7 {[%emt 0:04:30]} Nxc7 {[%emt 0:06:00]} 25. Nxb7 {[%emt 0:19:30]} Qd5 {[%emt 0:00:00]} 26. Na5 {[%emt 0:02:30]} Ne6 {[%emt 0:00:00]} 27. h4 {[%emt 0:00:30]} Qxa2 {[%emt 0:05:30]} 28. Nc4 {[%emt 0:03:30]} 1/2-1/2

[Event "27th CRO-chT 1A-Men 2018"]
[Site "Biograd"]
[Date "2018.09.09"]
[Round "2.16"]
[White "Bender, Ivan"]
[Black "Bukal, Vladimir Jr"]
[Result "1-0"]
[ECO "A90"]
[WhiteElo "2261"]
[BlackElo "2380"]
[Annotator "ChessBase"]
[PlyCount "192"]
[EventDate "2018.09.08"]
[EventType "team-tourn"]
[EventCountry "CRO"]
[SourceTitle "playchess.com"]
[Source "ChessBase"]
[SourceQuality "1"]
[TimeControl "40/5400+30:1800+30"]

1. d4 {[%emt 0:06:30]} e6 {[%emt 0:00:30]} 2. Nf3 {[%emt 0:00:00]} f5 {[%emt 0:00:00]} 3. g3 {[%emt 0:00:00]} Nf6 {[%emt 0:00:00]} 4. Bg2 {[%emt 0:00:30]} d5 {[%emt 0:00:00]} 5. O-O {[%emt 0:00:00]} Bd6 {[%emt 0:00:00]} 6. c4 {[%emt 0:00:00]} O-O {[%emt 0:00:30]} 7. Qc2 {[%emt 0:01:30]} c6 {[%emt 0:06:30]} 8. Nc3 {[%emt 0:00:00]} Ne4 {[%emt 0:01:30]} 9. Rb1 {[%emt 0:01:00]} Nd7 {[%emt 0:00:30]} 10. b4 {[%emt 0:00:00]} Bc7 {[%emt 0:04:30]} 11. b5 {[%emt 0:07:00]} Nb6 {[%emt 0:02:30]} 12. bxc6 {[%emt 0:02:30]} bxc6 {[%emt 0:00:30]} 13. cxd5 {[%emt 0:09:30]} cxd5 {[%emt 0:04:30]} 14. Nxe4 {[%emt 0:18:30]} fxe4 {[%emt 0:12:30]} 15. Bg5 {[%emt 0:01:30]} Qd7 {[%emt 0:00:00]} 16. Nd2 {[%emt 0:00:30]} h6 {[%emt 0:12:00]} 17. Be3 {[%emt 0:00:30]} Ba6 {[%emt 0:00:30]} 18. Rfc1 {[%emt 0:07:30]} Bd6 {[%emt 0:02:30]} 19. Qd1 {[%emt 0:01:30]} Rac8 {[%emt 0:07:30]} 20. Rxc8 {[%emt 0:08:30]} Rxc8 {[%emt 0:01:30]} 21. Nb3 {[%emt 0:00:00]} Na4 {[%emt 0:04:30]} 22. Bd2 {[%emt 0:01:00]} Ba3 {[%emt 0:05:30]} 23. Bf1 {[%emt 0:11:30]} Qe7 {[%emt 0:10:30]} 24. Na5 {[%emt 0:02:30]} Nc3 {[%emt 0:03:30]} 25. Bxc3 {[%emt 0:01:32]} Rxc3 {[%emt 0:00:30]} 26. e3 {[%emt 0:06:42]} Bd3 {[%emt 0:02:47]} 27. Bxd3 {[%emt 0:03:35]} exd3 {[%emt 0:00:34]} 28. Nb3 {[%emt 0:00:30]} Qf7 {[%emt 0:04:55]} 29. Qf1 {[%emt 0:02:34]} Qf5 {[%emt 0:04:52]} 30. Rd1 {[%emt 0:00:34]} Kh7 {[%emt 0:05:06]} 31. Kg2 {[%emt 0:02:45]} Kg8 {[%emt 0:01:38]} 32. Kg1 {[%emt 0:02:35]} Bb4 {[%emt 0:00:53]} 33. Nc1 {[%emt 0:03:01]} d2 {[%emt 0:00:01]} 34. Rxd2 {[%emt 0:00:07]} Rxe3 {[%emt 0:00:50]} 35. Re2 {[%emt 0:00:09]} Re4 {[%emt 0:02:07]} 36. Qd1 {[%emt 0:01:23]} Qf3 {[%emt 0:00:47]} 37. Qc2 {[%emt 0:00:32]} Rxd4 {[%emt 0:00:24]} 38. Qc8+ {[%emt 0:00:21]} Kh7 {[%emt 0:00:25]} 39. Qc2+ {[%emt 0:00:22]} Qf5 {[%emt 0:00:00]} 40. Qxf5+ {[%emt 0:00:00]} exf5 {[%emt 0:00:00]} 41. Kg2 {[%emt 0:07:48]} Rd1 {[%emt 0:07:41]} 42. Nb3 {[%emt 0:00:30]} a5 {[%emt 0:00:30]} 43. a3 {[%emt 0:01:30]} Bc3 {[%emt 0:00:30]} 44. Rc2 {[%emt 0:00:30]} d4 {[%emt 0:01:30]} 45. Kf3 {[%emt 0:00:30]} Rb1 {[%emt 0:01:30]} 46. Nc5 {[%emt 0:04:24]} Rb5 {[%emt 0:03:30]} 47. Na4 {[%emt 0:06:04]} Rb3 {[%emt 0:00:00]} 48. Nxc3 {[%emt 0:00:01]} Rxa3 {[%emt 0:00:00]} 49. Kf4 {[%emt 0:00:24]} Rxc3 {[%emt 0:05:16]} 50. Rd2 {[%emt 0:00:30]} d3 {[%emt 0:00:12]} 51. Kxf5 {[%emt 0:00:40]} Rc2 {[%emt 0:00:07]} 52. Rxd3 {[%emt 0:00:02]} Rxf2+ {[%emt 0:00:04]} 53. Kg4 {[%emt 0:00:13]} Rf6 {[%emt 0:00:50]} 54. Ra3 {[%emt 0:02:31]} Ra6 {[%emt 0:00:02]} 55. Ra4 {[%emt 0:06:25]} Kg6 {[%emt 0:00:07]} 56. h4 {[%emt 0:00:55]} h5+ {[%emt 0:03:45]} 57. Kf4 {[%emt 0:00:37]} Kf6 {[%emt 0:00:02]} 58. Ke4 {[%emt 0:00:27]} Ke6 {[%emt 0:00:02]} 59. Kd4 {[%emt 0:00:40]} Kd6 {[%emt 0:03:12]} 60. g4 {[%emt 0:04:45]} hxg4 {[%emt 0:01:04]} 61. Kc3 {[%emt 0:00:15]} Ke7 {[%emt 0:06:14]} 62. Rxg4 {[%emt 0:00:18]} Kf7 {[%emt 0:00:06]} 63. Kb3 {[%emt 0:02:18]} Rb6+ {[%emt 0:03:11]} 64. Kc3 {[%emt 0:00:01]} Rb4 {[%emt 0:00:25]} 65. Rg5 {[%emt 0:00:01]} Rxh4 {[%emt 0:00:03]} 66. Rxa5 {[%emt 0:00:10]} Re4 {[%emt 0:00:10]} 67. Kd3 {[%emt 0:01:35]} Re6 {[%emt 0:00:55]} 68. Rg5 {[%emt 0:00:43]} Kf6 {[%emt 0:00:32]} 69. Rg3 {[%emt 0:00:29]} g6 {[%emt 0:00:43]} 70. Rg2 {[%emt 0:00:30]} Kf5 {[%emt 0:00:10]} 71. Rf2+ {[%emt 0:00:31]} Kg4 {[%emt 0:00:31]} 72. Rf1 {[%emt 0:00:30]} Kg3 {[%emt 0:01:28]} 73. Rg1+ {[%emt 0:00:06]} Kf2 {[%emt 0:02:13]} 74. Rg4 {[%emt 0:00:33]} Re3+ {[%emt 0:01:12]} 75. Kd4 {[%emt 0:00:30]} Rg3 {[%emt 0:00:01]} 76. Rf4+ {[%emt 0:00:00]} Kg2 {[%emt 0:00:15]} 77. Ke4 {[%emt 0:01:09]} g5 {[%emt 0:01:09]} 78. Rf5 {[%emt 0:00:38]} Kh3 {[%emt 0:00:08]} 79. Rf1 {[%emt 0:00:31]} Kg4 {[%emt 0:00:24]} 80. Rh1 {[%emt 0:00:32]} Rg2 {[%emt 0:00:11]} 81. Ke3 {[%emt 0:00:21]} Kg3 {[%emt 0:00:03]} 82. Rh8 {[%emt 0:00:40]} g4 {[%emt 0:00:01]} 83. Rh7 {[%emt 0:00:30]} Rg1 {[%emt 0:00:27]} 84. Ke2 {[%emt 0:00:19]} Kg2 {[%emt 0:00:02]} 85. Rg7 {[%emt 0:00:52]} g3 {[%emt 0:00:01]} 86. Rg8 {[%emt 0:00:15]} Ra1 {[%emt 0:00:18]} 87. Rh8 {[%emt 0:00:24]} Ra7 {[%emt 0:00:32]} 88. Ke3 {[%emt 0:00:38]} Re7+ {[%emt 0:00:30]} 89. Kd2 {[%emt 0:00:29]} Kf2 {[%emt 0:00:14]} 90. Rf8+ {[%emt 0:00:09]} Kg1 {[%emt 0:00:00]} 91. Rg8 {[%emt 0:00:02]} g2 {[%emt 0:00:04]} 92. Rh8 {[%emt 0:00:21]} Re5 {[%emt 0:00:39]} 93. Rh7 {[%emt 0:01:00]} Kf2 {[%emt 0:00:10]} 94. Rf7+ {[%emt 0:00:29]} Kg3 {[%emt 0:00:07]} 95. Rg7+ {[%emt 0:00:01]} Kf3 {[%emt 0:00:04]} 96. Kd3 {[%emt 0:01:31]} Rd5+ {[%emt 0:00:11]} 1-0

[Event "27th CRO-chT 1A-Men 2018"]
[Site "Biograd"]
[Date "2018.09.09"]
[Round "2.17"]
[White "Dutina, Dario"]
[Black "Brnas, Augustin"]
[Result "1-0"]
[ECO "C49"]
[WhiteElo "2245"]
[BlackElo "2190"]
[Annotator "ChessBase"]
[PlyCount "67"]
[EventDate "2018.09.08"]
[EventType "team-tourn"]
[EventCountry "CRO"]
[SourceTitle "playchess.com"]
[Source "ChessBase"]
[SourceQuality "1"]
[TimeControl "40/5400+30:1800+30"]

1. e4 {[%emt 0:00:30]} e5 {[%emt 0:03:30]} 2. Nf3 {[%emt 0:00:00]} Nc6 {[%emt 0:00:30]} 3. Nc3 {[%emt 0:02:00]} Nf6 {[%emt 0:02:30]} 4. Bb5 {[%emt 0:00:30]} Bb4 {[%emt 0:04:30]} 5. O-O {[%emt 0:00:30]} Bxc3 {[%emt 0:04:30]} 6. bxc3 {[%emt 0:00:30]} O-O {[%emt 0:00:30]} 7. Re1 {[%emt 0:03:30]} d6 {[%emt 0:06:30]} 8. d4 {[%emt 0:03:30]} Bg4 {[%emt 0:05:30]} 9. Bxc6 {[%emt 0:21:30]} bxc6 {[%emt 0:05:30]} 10. dxe5 {[%emt 0:02:30]} Bxf3 {[%emt 0:00:30]} 11. Qxf3 {[%emt 0:00:30]} dxe5 {[%emt 0:00:30]} 12. Bg5 {[%emt 0:01:30]} Qe7 {[%emt 0:02:30]} 13. Red1 {[%emt 0:25:30]} Rab8 {[%emt 0:09:30]} 14. h4 {[%emt 0:18:39]} h6 {[%emt 0:09:30]} 15. Bxf6 {[%emt 0:04:10]} Qxf6 {[%emt 0:00:30]} 16. Qxf6 {[%emt 0:00:03]} gxf6 {[%emt 0:00:00]} 17. Rab1 {[%emt 0:01:15]} Rb6 {[%emt 0:00:00]} 18. Rb3 {[%emt 0:00:04]} Rfb8 {[%emt 0:00:30]} 19. Rd7 {[%emt 0:01:07]} Rc8 {[%emt 0:00:30]} 20. c4 {[%emt 0:01:29]} Kf8 {[%emt 0:02:30]} 21. Kh2 {[%emt 0:02:42]} Ke8 {[%emt 0:00:30]} 22. Rdd3 {[%emt 0:00:17]} Ke7 {[%emt 0:01:30]} 23. Kh3 {[%emt 0:00:26]} h5 {[%emt 0:01:30]} 24. c5 {[%emt 0:00:31]} Rbb8 {[%emt 0:01:30]} 25. Rxb8 {[%emt 0:00:58]} Rxb8 {[%emt 0:00:30]} 26. Rb3 {[%emt 0:00:03]} Ra8 {[%emt 0:01:30]} 27. Rb7 {[%emt 0:00:20]} Kd7 {[%emt 0:00:00]} 28. g4 {[%emt 0:00:43]} hxg4+ {[%emt 0:01:00]} 29. Kxg4 {[%emt 0:00:32]} Rg8+ {[%emt 0:00:30]} 30. Kh3 {[%emt 0:00:28]} a5 {[%emt 0:03:30]} 31. Ra7 {[%emt 0:00:10]} Rb8 {[%emt 0:00:30]} 32. Rxa5 {[%emt 0:00:10]} Rb2 {[%emt 0:00:30]} 33. h5 {[%emt 0:00:45]} Rxc2 {[%emt 0:00:30]} 34. h6 {[%emt 0:02:06]} 1-0

[Event "27th CRO-chT 1A-Men 2018"]
[Site "Biograd"]
[Date "2018.09.09"]
[Round "2.18"]
[White "Ivankovic, Ivo"]
[Black "Bozinovic, Bogdan"]
[Result "0-1"]
[ECO "B44"]
[WhiteElo "2110"]
[BlackElo "2229"]
[Annotator "NA"]
[PlyCount "50"]
[EventDate "2018.09.08"]
[EventType "team-tourn"]
[EventCountry "CRO"]
[SourceTitle "playchess.com"]
[Source "ChessBase"]
[SourceQuality "1"]
[TimeControl "40/5400+30:1800+30"]

1. c4 {[%emt 0:00:30]} Nf6 {[%emt 0:02:30]} 2. Nc3 {[%emt 0:00:30]} c5 {[%emt 0:00:30]} 3. Nf3 {[%emt 0:00:30]} e6 {[%emt 0:02:30]} 4. e4 {[%emt 0:05:30]} Nc6 {[%emt 0:01:30]} 5. d4 {[%emt 0:01:30]} cxd4 {[%emt 0:01:30]} 6. Nxd4 {[%emt 0:00:30]} Bb4 {[%emt 0:01:30]} 7. Nxc6 {[%emt 0:08:30]} bxc6 {[%emt 0:01:30]} 8. Bd3 {[%emt 0:03:30]} d5 {[%emt 0:06:30]} 9. exd5 {[%emt 0:04:30]} exd5 {[%emt 0:02:30]} 10. O-O {[%emt 0:01:30]} O-O {[%emt 0:01:30] LiveBook: 4 Partien} 11. Bg5 $11 {[%emt 0:09:30]} h6 {[%emt 0:04:30]} 12. Bh4 {[%emt 0:02:30]} Be6 {[%emt 0:06:30]} 13. cxd5 {[%emt 0:08:30]} cxd5 {[%emt 0:00:30]} 14. Nb5 {[%emt 0:05:30]} Be7 {[%emt 0:06:30]} 15. Nd4 {[%emt 0:04:30]} Bd7 {[%emt 0:07:30]} 16. Bf5 {[%emt 0:05:30]} g6 {[%emt 0:13:30]} 17. Bxd7 {[%emt 0:00:30]} Qxd7 {[%emt 0:00:30]} 18. Qf3 {[%emt 0:02:30]} Ne4 {[%emt 0:02:30]} 19. Bxe7 {[%emt 0:00:30]} Qxe7 {[%emt 0:00:00]} 20. Rfd1 {[%emt 0:02:30]} Rac8 {[%emt 0:04:00]} 21. Rd3 {[%emt 0:04:30]} Qb4 {[%emt 0:04:30]} 22. b3 {[%emt 0:02:30]} Rc3 {[%emt 0:05:30]} 23. a3 {[%emt 0:04:30]} Qc5 {[%emt 0:00:30]} 24. Rxc3 {[%emt 0:03:06]} Nxc3 {[%emt 0:01:30]} 25. Qe3 {[%emt 0:02:14]} Qxd4 {[%emt 0:00:00]} 0-1

[Event "27th CRO-chT 1A-Men 2018"]
[Site "Biograd"]
[Date "2018.09.09"]
[Round "2.23"]
[White "Golubovic, Boris"]
[Black "Cosic, Marin"]
[Result "1/2-1/2"]
[ECO "D94"]
[WhiteElo "2386"]
[BlackElo "2227"]
[Annotator "ChessBase"]
[PlyCount "44"]
[EventDate "2018.09.08"]
[EventType "team-tourn"]
[EventCountry "CRO"]
[SourceTitle "playchess.com"]
[Source "ChessBase"]
[SourceQuality "1"]
[TimeControl "40/5400+30:1800+30"]

1. c4 {[%emt 0:00:30]} c6 {[%emt 0:00:30]} 2. Nf3 {[%emt 0:05:30]} Nf6 {[%emt 0:00:30]} 3. Nc3 {[%emt 0:01:30]} d5 {[%emt 0:00:30]} 4. e3 {[%emt 0:02:30]} g6 {[%emt 0:04:30]} 5. d4 {[%emt 0:02:30]} Bg7 {[%emt 0:07:30]} 6. Be2 {[%emt 0:02:30]} O-O {[%emt 0:00:30]} 7. O-O {[%emt 0:00:00]} Bg4 {[%emt 0:20:30]} 8. cxd5 {[%emt 0:06:00]} Nxd5 {[%emt 0:03:30]} 9. h3 {[%emt 0:08:30]} Bxf3 {[%emt 0:07:30]} 10. Bxf3 {[%emt 0:01:30]} Nb6 {[%emt 0:00:30]} 11. a4 {[%emt 0:08:30]} a5 {[%emt 0:03:30]} 12. Qb3 {[%emt 0:00:30]} Na6 {[%emt 0:01:30]} 13. Rd1 {[%emt 0:02:30]} e6 {[%emt 0:03:30]} 14. Bd2 {[%emt 0:04:30]} Qc7 {[%emt 0:05:30]} 15. Rac1 {[%emt 0:05:30]} Nb4 {[%emt 0:03:30]} 16. Be1 {[%emt 0:15:30]} Rfe8 {[%emt 0:05:30]} 17. g3 {[%emt 0:01:30]} Qe7 {[%emt 0:05:30]} 18. Ne4 {[%emt 0:10:41]} Bf8 {[%emt 0:00:30]} 19. Nc5 {[%emt 0:02:15]} Qc7 {[%emt 0:00:30]} 20. Bg2 {[%emt 0:02:43]} N4d5 {[%emt 0:03:30]} 21. Ne4 {[%emt 0:02:10]} Nd7 {[%emt 0:00:30]} 22. Nd2 {[%emt 0:03:50]} Qb6 {[%emt 0:01:30]} 1/2-1/2